Cogmind - Beta 17 @@@ ROGUE MODE // 2026.08.06 @ 15:09:31 Player: 4R-ZE3 Result: Self-destructed Performance ------------- Evolutions (0) 0 Regions Visited (3) 600 Robots Destroyed (15) 75 Value Destroyed (308) 308 Prototype IDs (0) 0 Alien Tech Used (0) 0 Bonus (300) 300 TOTAL SCORE: 1283 Bonus ------- Registered with UFD 300 Cogmind --------- Core Integrity 94/250 Matter 300/300 Energy 200/200 System Corruption 0% Temperature Cool (0) Movement Treading (340) Ox2 Location -9/Scraptown Parts ------- > --- POWER (1) -------- Subdweller Power Source > --- PROPULSION (2) --- Light Treads Spiked Treads > --- UTILITY (2) ------ Huge Storage Unit Makeshift Thermal Plating > --- WEAPON (2) ------- Subdweller Beam Cannon Light Assault Rifle > --- INVENTORY (25) --- Subdweller Power Source Light Treads Light Treads Light Treads Light Treads Weapon Shielding Subdweller Laser Peak State ------------ > --- POWER ------------ Subdweller Power Source > --- PROPULSION ------- Light Treads Spiked Treads > --- UTILITY ---------- Huge Storage Unit Makeshift Thermal Plating > --- WEAPON ----------- Subdweller Beam Cannon Light Assault Rifle > --- INVENTORY -------- Subdweller Power Source Light Treads Light Treads Light Treads Light Treads Weapon Shielding Subdweller Laser [Rating: 13] Favorites ----------- Power Subdweller Power Source Engine Subdweller Power Source Propulsion Light Treads Treads Light Treads Utility Huge Storage Unit Storage Huge Storage Unit Protection Makeshift Thermal Plating Weapon Medium Laser Energy Gun Medium Laser Energy Cannon Subdweller Beam Cannon Ballistic Gun Light Assault Rifle Build | -11 -10 -10 -9 ------- Run | Yrd Mat Sub Scr Slots Evolved . | . . . . Power . | . . . . Propulsion . | . . . . Utility . | . . . . Weapon . | . . . . Parts Attached 22 | 6 6 10 . Power 3 | 1 1 1 . Engine 3 | 1 1 1 . Core . | . . . . Reactor . | . . . . Propulsion 8 | 2 2 4 . Treads 8 | 2 2 4 . Leg . | . . . . Wheel . | . . . . Hover . | . . . . Flight . | . . . . Utility 5 | 1 3 1 . Device . | . . . . Storage 3 | 1 2 . . Processor . | . . . . Hackware . | . . . . Protection 2 | . 1 1 . Artifact . | . . . . Weapon 6 | 2 . 4 . Energy Gun 3 | 2 . 1 . Energy Cannon 1 | . . 1 . Ballistic Gun 2 | . . 2 . Ballistic Cannon . | . . . . Launcher . | . . . . Special Weapon . | . . . . Impact Weapon . | . . . . Slashing Weapon . | . . . . Piercing Weapon . | . . . . Special Melee Weapon . | . . . . Unidentified Prototypes . | . . . . Parts Lost 8 | . . 8 . Power 1 | . . 1 . Propulsion 3 | . . 3 . Utility . | . . . . Weapon 4 | . . 4 . Highest Loss Streak 8 | . . 8 . To Critical Strikes . | . . . . Average Backups 7 | . 7 6 7 Power . | . . . 1 Propulsion 4 | . 6 4 4 Utility . | . . 1 1 Weapon 1 | . 1 1 1 Tool/Special . | . . . . Unused Backups 6 | . . . 6 Power 1 | . . . 1 Propulsion 3 | . . . 3 Utility 1 | . . . 1 Weapon 1 | . . . 1 Tool/Special . | . . . . Average Slot Usage (%) 93 | . 86 98 100 Engine 13 | . 13 13 14 Treads 27 | . 27 27 28 Storage 14 | . 14 14 14 Protection 8 | . 1 14 14 Energy Gun 13 | . 28 6 . Energy Cannon 7 | . . 9 14 Ballistic Gun 7 | . . 10 14 Peak Build Rating 13 | 6 8 13 13 Average Rating 9 | 4 6 10 13 On Entrance 6 | . 6 8 13 Avg Prop Armor Cover (%) . | . . . . Naked Turns . | . . . . Heaviest Build 98 | 12 88 98 98 Greatest Support 40 | 40 40 40 40 Greatest Overweight (x) 2 | . 2 2 2 Average Overweight (x) 1 | . . 2 2 Largest Inventory Capacity 25 | 8 25 25 25 Average Capacity 19 | 7 11 25 25 Most Carried 10 | 1 10 10 7 Average Carried 7 | . 7 6 7 Final Capacity 25 | 8 25 25 25 Final Carried 10 | 1 10 7 7 Class Distribution -------------------- 100% | Mutant Dominant Class ---------------- Mutant | -10/Materials Mutant | -10/Subcaves Mutant | -9/Scraptown Resources | -11 -10 -10 -9 ----------- Run | Yrd Mat Sub Scr Matter Collected 449 | 212 128 109 . Remotely . | . . . . Salvage Created 390 | . 274 116 . Parts 26 | . 20 6 . Haulers Intercepted 1 | . 1 . . Recyclers Shooed . | . . . . Parts Field Recycled . | . . . . Retrieved Matter . | . . . . Parts Self-Destructed 17 | . . 17 . Prevented . | . . . . Parts Restored . | . . . . Kills | -11 -10 -10 -9 ------- Run | Yrd Mat Sub Scr Combat Hostiles Destroyed 13 | . 9 4 . Guns 12 | . 9 3 . Cannons 1 | . . 1 . Classes Destroyed 5 | . 4 1 . Worker 1 | . 1 . . Hauler 1 | . 1 . . Swarmer 7 | . 6 1 . Grunt 3 | . 3 . . Subdweller 3 | . . 3 . Best Kill Streak 3 | . 3 2 . Combat Bots Only 2 | . 2 2 . Max Kills in Single Turn 2 | . 2 1 . Gunslinging 1 | . 1 . . Exploded . | . . . . Melee . | . . . . Uniques/NPCs Destroyed . | . . . . Combat | -11 -10 -10 -9 -------- Run | Yrd Mat Sub Scr Hostile Shots Fired 115 | . 43 72 . Missed 38 | . 14 24 . Hits 77 | . 29 48 . Projectile 77 | . 29 48 . Critical Strikes 4 | . . 4 . Actively Blocked 1 | . . 1 . Damage Taken 1353 | . 289 1064 . Core 156 | . 14 142 . Absorbed by Shields . | . . . . Redirected to Shielding 15 | . . 15 . Ignored by Resistances 3 | . . 3 . Core Remaining (%) 100 | 100 . . . Volleys Fired 57 | . 28 29 . Largest 2 | . 2 2 . Hottest 100 | . 100 100 . Shots Fired 111 | . 56 55 . Gun 102 | . 56 46 . Cannon 9 | . . 9 . Launcher . | . . . . Special . | . . . . Kinetic 29 | . . 29 . Thermal 82 | . 56 26 . Explosive . | . . . . Electromagnetic . | . . . . Robot Hit Streak 39 | . 9 39 . Robot Miss Streak 3 | . 2 3 . Penetration Max . | . . . . Secondary Targets 3 | . 2 1 . Max Gunslinging Chain 1 | . 1 1 . Shots Hit Robots 86 | . 37 49 . Core Hits 26 | . 16 10 . Critical Kills . | . . . . Critical Parts Destroyed . | . . . . Critical Strikes 5 | . 4 1 . Burn 5 | . 4 1 . Melee Attacks . | . . . . Impact . | . . . . Slashing . | . . . . Piercing . | . . . . Sneak Attacks . | . . . . Combat Hostiles . | . . . . Follow-up Attacks . | . . . . Damage Inflicted 1091 | . 510 581 . Guns 926 | . 510 416 . Cannons 165 | . . 165 . Explosions . | . . . . Melee . | . . . . Ramming . | . . . . Kinetic 206 | . . 206 . Thermal 885 | . 510 375 . Explosive . | . . . . Electromagnetic . | . . . . Impact . | . . . . Slashing . | . . . . Piercing . | . . . . Highest Corruption . | . . . . Average Corruption . | . . . . Corruption Purged . | . . . . Corruption Blocked . | . . . . Overload Shots . | . . . . Overflow Damage . | . . . . Projectiles . | . . . . Explosions . | . . . . Melee . | . . . . Knockbacks . | . . . . Impact . | . . . . Kinetic . | . . . . Secondary . | . . . . Self-Inflicted Damage . | . . . . Shots . | . . . . Rammed . | . . . . Targets Rammed . | . . . . Kicked . | . . . . Crushed . | . . . . Highest Temperature 234 | . 198 234 . Average Temperature 77 | . 79 70 . Received Heat Transfer 636 | . 90 546 . Siege Activations . | . . . . Martial Activations . | . . . . Shielding Activations . | . . . . Robots Disrupted . | . . . . Combat Hostiles . | . . . . Robots Corrupted . | . . . . Combat Hostiles . | . . . . Parts Fried . | . . . . Impact Corruptions . | . . . . Robots Melted . | . . . . Combat Hostiles . | . . . . Parts Melted 4 | . 3 1 . Heat Transferred 2580 | . 1739 841 . Parts Sabotaged . | . . . . Parts Stolen . | . . . . Parts Stripped . | . . . . Power Chain Reactions . | . . . . Alert | -11 -10 -10 -9 ------- Run | Yrd Mat Sub Scr Maximum Alert Level . | . . . . Low Security (%) 100 | 100 100 . . Level 1 . | . . . . Level 2 . | . . . . Level 3 . | . . . . Level 4 . | . . . . Level 5 . | . . . . High Security . | . . . . Max Security . | . . . . Peak Influence 75 | . 75 . . Initial . | . . . . Average 13 | . 14 . . Influence Increases 313 | . 263 50 . Destroy 0b10 Robot/C 200 | . 180 20 . Destroy 0b10 Robot/NC 10 | . 10 . . Destroy Leader 42 | . 42 . . Destroy Structure 1 | . 1 . . Lose Combat Pursuer 60 | . 30 30 . Influence Decreases 313 | . 263 12 38 Entered New Map 38 | . . . 38 Time Decay 275 | . 263 12 . Squads Dispatched 1 | . 1 . . Investigation . | . . . . Extermination . | . . . . Reinforcement 1 | . 1 . . Assault . | . . . . Garrison . | . . . . Intercept . | . . . . Searches Triggered . | . . . . Construction Impeded . | . . . . Haulers Reinforced . | . . . . Active Scanning Responses . | . . . . Cargo Convoy Interrupts . | . . . . Stealth | -11 -10 -10 -9 --------- Run | Yrd Mat Sub Scr Distress Signals 1 | . 1 . . Communications Jammed . | . . . . Distress Signals . | . . . . Times Spotted 26 | . 21 5 . Peak Tracking Total 4 | . 4 2 . Tactical Retreats 3 | . 2 1 . Traps | -11 -10 -10 -9 ------- Run | Yrd Mat Sub Scr Traps Triggered 3 | . 3 . . Indirectly . | . . . . Trap Hack Attempts . | . . . . Triggered . | . . . . Disarmed . | . . . . Reprogrammed . | . . . . Reused . | . . . . Traps Extracted . | . . . . Installed . | . . . . Triggered . | . . . . Machines | -11 -10 -10 -9 ---------- Run | Yrd Mat Sub Scr Machines Disabled . | . . . . Max in Single Turn . | . . . . Machines Repaired . | . . . . Machines Dismantled . | . . . . Machines Sabotaged . | . . . . Overloaded Fab Kills . | . . . . Hacking | -11 -10 -10 -9 --------- Run | Yrd Mat Sub Scr Machines Accessed 8 | . 8 . . Terminals 6 | . 6 . . Fabricators . | . . . . Repair Stations . | . . . . Recycling Units 2 | . 2 . . Scanalyzers . | . . . . Garrison Access . | . . . . Total Hacks 17 | . 17 . . Successful 6 | . 6 . . Failed 11 | . 11 . . Catastrophic 3 | . 3 . . Database Lockouts . | . . . . Manual 10 | . 10 . . Terminals 13 | . 13 . . Fabricators . | . . . . Repair Stations . | . . . . Recycling Units 4 | . 4 . . Scanalyzers . | . . . . Garrison Access . | . . . . Terminal Hacks 3 | . 3 . . Robot Analysis 2 | . 2 . . Zone Layout 1 | . 1 . . Fabricator Hacks . | . . . . Repair Station Hacks . | . . . . Recycling Unit Hacks 1 | . 1 . . Retrieve Components 1 | . 1 . . Scanalyzer . | . . . . Garrison Access Hacks . | . . . . Unauthorized Hacks 2 | . 2 . . Terminals 2 | . 2 . . Botnet 2 | . 2 . . Fabricators . | . . . . Repair Stations . | . . . . Recycling Units . | . . . . Scanalyzers . | . . . . Garrison Access . | . . . . Data Cores Recovered . | . . . . Used . | . . . . Hacking Detections 7 | . 7 . . Full Trace Events . | . . . . Feedback Events . | . . . . Feedback Blocked . | . . . . Robot Schematics Acquired . | . . . . Robots Built . | . . . . Authchips . | . . . . Time . | . . . . Total Robot Build Rating . | . . . . Part Schematics Acquired . | . . . . Parts Built . | . . . . Authchips . | . . . . Time . | . . . . Total Part Build Rating . | . . . . Part Studies Acquired . | . . . . Parts Repaired . | . . . . Time . | . . . . Parts Recycled . | . . . . Recycled Matter . | . . . . Retrieved Matter . | . . . . Retrieved Components 7 | . 7 . . Parts Scanalyzed . | . . . . Part Schematics Acquired . | . . . . Parts Damaged . | . . . . Bothacking | -11 -10 -10 -9 ------------ Run | Yrd Mat Sub Scr Used RIF Installer . | . . . . Robots Hacked . | . . . . Non-combat . | . . . . Combat . | . . . . Robot Hacks Applied . | . . . . Relay Couplers Released . | . . . . Fabnet Peak Effective % . | . . . . Robots Rewired . | . . . . Allies Hacked . | . . . . Hacks Repelled . | . . . . Allies | -11 -10 -10 -9 -------- Run | Yrd Mat Sub Scr Total Allies . | . . . . Largest Group . | . . . . Highest-Rated Group . | . . . . Highest-Rated Ally . | . . . . Total Orders . | . . . . Ally Attacks . | . . . . Total Damage . | . . . . Kills . | . . . . Allies Corrupted . | . . . . Allies Melted . | . . . . Intel | -11 -10 -10 -9 ------- Run | Yrd Mat Sub Scr Active Infowar (turns) . | . . . . Robot Analysis Total 2 | . 2 . . Derelict Logs Recovered 4 | . . 1 3 Drone Launches . | . . . . Drone Recoveries . | . . . . Exploration | -11 -10 -10 -9 ------------- Run | Yrd Mat Sub Scr Turns Passed 3424 | 64 1355 1059 946 Spaces Moved 1285 | 36 677 294 278 Core 2 | 2 . . . Treads 1283 | 34 677 294 278 Legs . | . . . . Wheels . | . . . . Hover . | . . . . Flight . | . . . . Fastest Speed 50 | 50 160 320 340 Average Speed 247 | 153 178 327 340 Slowest Speed 340 | 160 320 340 340 Overloaded Moves . | . . . . Propulsion Burnouts . | . . . . Robots Hopped . | . . . . Potential Cave-ins . | . . . . Cave-ins Triggered . | . . . . Exploration Rate (%) 36 | 3 89 16 39 Regions Visited 3 Branch Regions 2 Pre-discovered Areas . | . . . . Known Exits Taken . | . . . . Unknown Exits Taken 3 | 1 1 1 . Scrap Searched 2 | . . 2 . Spaces Dug . | . . . . Terrain Destroyed 2 | . . 2 . Melee . | . . . . Projectile 2 | . . 2 . AOE . | . . . . Terrain Rammed . | . . . . Walls Destroyed . | . . . . Machines Disabled . | . . . . Actions | -11 -10 -10 -9 --------- Run | Yrd Mat Sub Scr Total 1425 | 42 765 340 278 Wait 41 | . 36 5 . Move 1282 | 35 676 293 278 Hop . | . . . . Pick Up 14 | 1 11 2 . Fast Attach 16 | 6 7 3 . Attach 7 | . 1 6 . Detach . | . . . . Swap 3 | . 2 1 . Drop 5 | . 4 1 . Fire 57 | . 28 29 . Melee . | . . . . Ram . | . . . . Kick . | . . . . Crush . | . . . . Escape Stasis . | . . . . Rewire . | . . . . Trap . | . . . . Miscellaneous . | . . . . Route ------- -11/Scrapyard -10/Materials (discovered 5 exits: [*Mat x3] / [*Min] / [*Sub]) -10/Subcaves (discovered 3 exits: [*Mat] / Rec / [*Scr]) -9/Scraptown History --------- Turn | Location | Event 26 | -11/Scrapyard | Discovered new exit (range 16) 65 | -11/Scrapyard | Entered Materials 66 | -10/Materials | Met a group of wandering Federalists 288 | -10/Materials | Discovered new exit (range 14) 313 | -10/Materials | Build established: Mutant 612 | -10/Materials | Discovered new exit (range 15) 847 | -10/Materials | Discovered new exit (range 8) 970 | -10/Materials | Discovered new exit (range 13) 1137 | -10/Materials | Discovered new exit (range 13) 1420 | -10/Materials | Entered Subcaves 1421 | -10/Subcaves | Continued accompanying wandering Federalists (5) 1436 | -10/Subcaves | Identified exit to Recycling 1701 | -10/Subcaves | Core integrity fell below 50% 1733 | -10/Subcaves | Lost 8 parts (1p3n4w) 1957 | -10/Subcaves | Discovered new exit (range 8) 2479 | -10/Subcaves | Entered Scraptown 2683 | -9/Scraptown | Heard Great Nut preacher, LISTEN AND RECITE! 2741 | -9/Scraptown | Scanned Subdweller tech in exchange for log data 2748 | -9/Scraptown | Learned Factory non-interactive machine intel 2751 | -9/Scraptown | Learned Factory terminal intel 2755 | -9/Scraptown | Learned Factory emergency access door positions 2918 | -9/Scraptown | Visited UFD Registry 2918 | -9/Scraptown | Registered with UFD as "Boltbot" 3221 | -9/Scraptown | Visited Cartography Club 3425 | -9/Scraptown | Self-destructed Last Messages --------------- Our trusty PRNG will do. From here on you shall be known among us as... Boltbot the Scrapper. If you don't like it, tough, that's just how it is! You think I wanted to be called Nanobearings? Welcome, Boltbot! 02918_ ANNOUNCEMENT: Welcome to our newest member, Boltbot! Open the gate! 6Z-66H(j): I'm glad we have the Federation Council. Even rule under a benevolent dictator is still subject to all the dangers of concentrating too much power in one figure. You know who I mean. 03221_ LOCAL NARROWCAST: Cartography Club. We map, therefore we are. 03330_ 9P-5P9(p) closely examines the mainframe. 03342_ 9P-5P9(p) scrutinizes some mainframe outputs. Map ----- +----------------------------------------------------+ | # ?" ? ?"?????????????????????????? ?????? | | # ? "????????????#####???????" "?????" | | # " "???????????""""" ??????? ????"" | | # " "??????????? ! "???????" "?????" | | # " "???????????? "???????" "?????? | | # "" ??????????????? "???????? ??????? | | ? """"????????????????? "????????? ????????? | | ?# ???????????????????# #?????????# #?????????# | | ## ##########???????##### ########### ########### | | #???????#"""" """"""""""" """"""""""" | | #???????#" | | #???????#" | | #???????#" | | #???????#" | | ### #????####" | | ??# #????"""" """"""""""""""""""""""" | | ??# #????"""" """"""""""""""""""""""" | | ??# #????"""" ""###### ############# | | ??# #????"""" ""#??? ??????????? | | ??# #????"""" ""#??? ??????????? | | ??# ###?#""""p ""#?? "" "" ?????????? | | ??# ""#"#"""" ""#? "" "??????????? | | ??# """"#"""" ""# " ??????###### | | ??# ""#######" "" ""?????? | | ??# ###?????#" "" "??????? | | ??# #########" @ ""# " ???????###### | | ??# ""# ""? ????????????? | | ??# ""#? "" "???????????? | | ??# ""#??? ???????????? | | ??# ""#??? ???????????? | | ??# ""###### ############# | | """"""""""""""""""""""" | | """"""""""""""""""""""" | | | | | | | | #""""#" | | ? #????#" | | ?? #????#"""""" """"""""""" """""""""" | | ???###### ####????####### ########### ########## | | ????????# ????????????? ???????? ??????? | | ????????# ????????????# ??????# #?????# | | ?????????? ????????????#! !??????# #?????# | | ????????????????????????#! !??????# #?????#" | | ????????????????????????#! !#?????#######?????#" | | ????????????????????????#! !#??????????????????" | | ????????????????????????#! !#??????????????????? | | ????????????????????????# #??????????????????? | | ????????????????????????#######??????????????????? | | ?????????????????????????????????????????????????? | +----------------------------------------------------+ Best States ------------- Heat Dissipation 25 Energy Generation 15 Energy Capacity 200 Matter Stores 300 Matter Capacity 300 Sight Range 16 Terrain Scan Density 10 Armor Coverage 100 Resistance: TH 10 Utility Shielding 33 Evasion (%) 40 Recoil Reduction 2 Item Schematics ----------------- None Robot Schematics ------------------ None Fabricated ------------ Nothing Repaired ---------- Nothing Studied --------- None Alien Tech Used ----------------- None Achievements -------------- None Challenges ------------ None Game ------ Seed ServoSmallSpear Manual? 0 Play Time 00:10:32 Cumulative 182.7 hours Start 2026.08.06 @ 14:57:54 End 2026.08.06 @ 15:09:31 Sessions 1 Manual Loads 0 Difficulty Rogue Special Mode None Game No. 196 Rogue 142 Adventurer 54 Explorer 0 Win Type - Total 9 Types 5/0/1/1/0/0/0/1/0/1 Lore% 67 Gallery% 59 Achievement% 56 Wizard Run 0 Options --------- Layout 1 ASCII 0 Keyboard 0 Movement Mouse Keybinds 1 Fullscreen 2 Font 32/Tamsyn Map View 50x35 Zoom Use 0% Tactical HUD 1 Map Filters NONE Filters NONE Steam 1 RUN: 34982026-35da-4a9d-abca-188ecc3eb3fd